[Event "*** Titled Tuesday Blitz"]
[Site "Chess.com"]
[Date "2020.12.01"]
[Round "5"]
[White "cstevens1"]
[Black "hleol"]
[Result "1-0"]
[WhiteElo "2659"]
[BlackElo "2327"]
[TimeControl "180+1"]
[EndTime "10:54:44 PST"]
[Termination "cstevens1 won by resignation"]

1. e4 {[%clk 0:02:40.2]} 1... c6 {[%clk 0:02:59.5]} 2. d4 {[%clk 0:02:39.5]}
2... d5 {[%clk 0:02:58.5]} 3. e5 {[%clk 0:02:39.9]} 3... c5 {[%clk 0:02:57.5]}
4. dxc5 {[%clk 0:02:39.2]} 4... e6 {[%clk 0:02:55.2]} 5. Nf3 {[%clk 0:02:39.4]}
5... Nd7 {[%clk 0:02:53.9]} 6. c4 {[%clk 0:02:36.1]} 6... Nxc5 {[%clk
0:02:49.6]} 7. cxd5 {[%clk 0:02:35.8]} 7... Qxd5 {[%clk 0:02:50.5]} 8. Qxd5
{[%clk 0:02:34.5]} 8... exd5 {[%clk 0:02:50]} 9. Nc3 {[%clk 0:02:34]} 9... Be6
{[%clk 0:02:44.8]} 10. Bb5+ {[%clk 0:02:25.9]} 10... Nd7 {[%clk 0:02:39.2]} 11.
O-O {[%clk 0:02:05.6]} 11... O-O-O {[%clk 0:02:32.6]} 12. Be3 {[%clk 0:01:32.7]}
12... Kb8 {[%clk 0:02:28.2]} 13. Rfd1 {[%clk 0:01:18.1]} 13... Ne7 {[%clk
0:01:49.5]} 14. Rac1 {[%clk 0:00:56.4]} 14... Ng6 {[%clk 0:01:35.4]} 15. Bxd7
{[%clk 0:00:52.6]} 15... Rxd7 {[%clk 0:01:32.4]} 16. Nb5 {[%clk 0:00:53]} 16...
b6 {[%clk 0:01:26.9]} 17. Nbd4 {[%clk 0:00:47.1]} 17... Kb7 {[%clk 0:00:43]} 18.
h3 {[%clk 0:00:36]} 18... Bc5 {[%clk 0:00:40.2]} 19. a3 {[%clk 0:00:23.8]} 19...
Rc8 {[%clk 0:00:34.8]} 20. Nxe6 {[%clk 0:00:13.1]} 20... Bxe3 {[%clk 0:00:33.7]}
21. Rxc8 {[%clk 0:00:12.2]} 21... Kxc8 {[%clk 0:00:30]} 22. Nxg7 {[%clk
0:00:12.7]} 22... Bf4 {[%clk 0:00:19.3]} 23. e6 {[%clk 0:00:10.4]} 23... fxe6
{[%clk 0:00:19.5]} 24. Nxe6 {[%clk 0:00:11.3]} 24... Kb7 {[%clk 0:00:19.2]} 25.
Nxf4 {[%clk 0:00:09.7]} 25... Nxf4 {[%clk 0:00:19.4]} 26. Kf1 {[%clk 0:00:08.2]}
26... Kc6 {[%clk 0:00:18.4]} 27. Ne5+ {[%clk 0:00:08]} 27... Kd6 {[%clk
0:00:18.2]} 28. Nxd7 {[%clk 0:00:08.6]} 28... Kxd7 {[%clk 0:00:19.1]} 29. g3
{[%clk 0:00:08.2]} 29... Ne6 {[%clk 0:00:19.2]} 30. Rxd5+ {[%clk 0:00:08.5]}
30... Kc6 {[%clk 0:00:19.8]} 31. Rh5 {[%clk 0:00:09.2]} 31... Nc5 {[%clk
0:00:20]} 32. Rxh7 {[%clk 0:00:09.2]} 32... Ne4 {[%clk 0:00:20.6]} 33. h4 {[%clk
0:00:08.7]} 33... Nd2+ {[%clk 0:00:21.1]} 34. Ke2 {[%clk 0:00:08]} 34... Nc4
{[%clk 0:00:22]} 35. h5 {[%clk 0:00:08.1]} 35... Nxb2 {[%clk 0:00:22.6]} 36. h6
{[%clk 0:00:08.6]} 36... Nc4 {[%clk 0:00:23.5]} 37. Rxa7 {[%clk 0:00:08.5]}
37... Ne5 {[%clk 0:00:23.1]} 38. h7 {[%clk 0:00:08.5]} 38... Ng6 {[%clk
0:00:23.8]} 39. Rg7 {[%clk 0:00:08.5]} 39... Nh8 {[%clk 0:00:23.3]} 40. Rg8
{[%clk 0:00:08.4]} 40... Nf7 {[%clk 0:00:24]} 41. h8=Q {[%clk 0:00:08.7]} 1-0

[Event "*** Titled Tuesday Blitz"]
[Site "Chess.com"]
[Date "2020.12.01"]
[Round "5"]
[White "zala02"]
[Black "Trickov"]
[Result "0-1"]
[WhiteElo "2161"]
[BlackElo "2346"]
[TimeControl "180+1"]
[EndTime "10:54:46 PST"]
[Termination "Trickov won by resignation"]

1. d4 {[%clk 0:03:00.9]} 1... d5 {[%clk 0:02:57.7]} 2. c4 {[%clk 0:03:00.5]}
2... c6 {[%clk 0:02:57]} 3. Nf3 {[%clk 0:03:00.5]} 3... Nf6 {[%clk 0:02:52.5]}
4. e3 {[%clk 0:02:59.8]} 4... Bf5 {[%clk 0:02:49.2]} 5. Nc3 {[%clk 0:02:46]}
5... e6 {[%clk 0:02:48.3]} 6. Nh4 {[%clk 0:02:46]} 6... Bg4 {[%clk 0:02:47.4]}
7. Qb3 {[%clk 0:02:31.8]} 7... Qb6 {[%clk 0:02:47.1]} 8. h3 {[%clk 0:02:27.1]}
8... Bh5 {[%clk 0:02:45.2]} 9. g4 {[%clk 0:02:27.1]} 9... Bg6 {[%clk 0:02:45.5]}
10. Bd2 {[%clk 0:02:24.6]} 10... Qxb3 {[%clk 0:02:37.4]} 11. axb3 {[%clk
0:02:24]} 11... Bc2 {[%clk 0:02:36.5]} 12. cxd5 {[%clk 0:02:04.1]} 12... exd5
{[%clk 0:02:34.5]} 13. f3 {[%clk 0:01:55.1]} 13... Bxb3 {[%clk 0:02:29.7]} 14.
e4 {[%clk 0:01:55.5]} 14... dxe4 {[%clk 0:02:24.3]} 15. fxe4 {[%clk 0:01:54.4]}
15... Nbd7 {[%clk 0:02:23.9]} 16. Bd3 {[%clk 0:01:41.9]} 16... a6 {[%clk
0:02:06.1]} 17. O-O {[%clk 0:01:40.1]} 17... c5 {[%clk 0:01:52.5]} 18. d5 {[%clk
0:01:24.4]} 18... Ne5 {[%clk 0:01:47.2]} 19. Be2 {[%clk 0:01:18.5]} 19... Bc4
{[%clk 0:01:44.9]} 20. Rae1 {[%clk 0:01:06.5]} 20... Bxe2 {[%clk 0:01:41.2]} 21.
Rxe2 {[%clk 0:01:07.4]} 21... Nfd7 {[%clk 0:01:33.8]} 22. Bf4 {[%clk 0:00:50.2]}
22... c4 {[%clk 0:01:19.3]} 23. Nf5 {[%clk 0:00:47.6]} 23... h5 {[%clk
0:01:05.6]} 24. g5 {[%clk 0:00:45.7]} 24... g6 {[%clk 0:01:02.5]} 25. Nd4 {[%clk
0:00:43.2]} 25... Bc5 {[%clk 0:00:58.3]} 26. Be3 {[%clk 0:00:41.7]} 26... O-O
{[%clk 0:00:50.2]} 27. Kg2 {[%clk 0:00:40.3]} 27... Rac8 {[%clk 0:00:48.5]} 28.
Nc2 {[%clk 0:00:20.3]} 28... Bxe3 {[%clk 0:00:46.6]} 29. Nxe3 {[%clk 0:00:21.2]}
29... b5 {[%clk 0:00:45.4]} 30. Rd1 {[%clk 0:00:16.6]} 30... Nc5 {[%clk
0:00:42.2]} 31. d6 {[%clk 0:00:15.9]} 31... Ncd3 {[%clk 0:00:32.8]} 32. Ncd5
{[%clk 0:00:14.2]} 32... Rcd8 {[%clk 0:00:29.8]} 33. Nf6+ {[%clk 0:00:10.9]}
33... Kg7 {[%clk 0:00:29.2]} 34. b3 {[%clk 0:00:06.3]} 34... Rxd6 {[%clk
0:00:27.8]} 35. bxc4 {[%clk 0:00:06.2]} 35... Nf4+ {[%clk 0:00:25.3]} 36. Kf2
{[%clk 0:00:02.1]} 36... Rxd1 {[%clk 0:00:21.4]} 0-1

[Event "*** Titled Tuesday Blitz"]
[Site "Chess.com"]
[Date "2020.12.01"]
[Round "5"]
[White "Blackmind96"]
[Black "GothamChess"]
[Result "0-1"]
[WhiteElo "2758"]
[BlackElo "2581"]
[TimeControl "180+1"]
[EndTime "10:54:47 PST"]
[Termination "GothamChess won by checkmate"]

1. d4 {[%clk 0:03:00.9]} 1... Nf6 {[%clk 0:02:57.9]} 2. c4 {[%clk 0:02:58.2]}
2... e5 {[%clk 0:02:58.4]} 3. dxe5 {[%clk 0:02:56.8]} 3... Ng4 {[%clk
0:02:59.1]} 4. Bf4 {[%clk 0:02:54.6]} 4... Nc6 {[%clk 0:02:55.2]} 5. Nf3 {[%clk
0:02:54.3]} 5... Bb4+ {[%clk 0:02:53.3]} 6. Nbd2 {[%clk 0:02:52.2]} 6... Qe7
{[%clk 0:02:52.8]} 7. e3 {[%clk 0:02:48.6]} 7... Ngxe5 {[%clk 0:02:48.5]} 8.
Nxe5 {[%clk 0:02:48.5]} 8... Nxe5 {[%clk 0:02:48.2]} 9. a3 {[%clk 0:02:49.1]}
9... Bxd2+ {[%clk 0:02:46]} 10. Qxd2 {[%clk 0:02:50]} 10... d6 {[%clk
0:02:45.5]} 11. Be2 {[%clk 0:02:49.2]} 11... O-O {[%clk 0:02:43.4]} 12. O-O
{[%clk 0:02:49.7]} 12... b6 {[%clk 0:02:30.4]} 13. f3 {[%clk 0:02:43.4]} 13...
a5 {[%clk 0:02:25.9]} 14. b3 {[%clk 0:02:42.6]} 14... Ba6 {[%clk 0:02:24.2]} 15.
Rac1 {[%clk 0:02:39.9]} 15... Rfe8 {[%clk 0:02:21]} 16. Bg3 {[%clk 0:02:35.8]}
16... Bb7 {[%clk 0:02:15.9]} 17. Rfe1 {[%clk 0:02:34.9]} 17... Nd7 {[%clk
0:02:12.6]} 18. e4 {[%clk 0:02:33.8]} 18... Nc5 {[%clk 0:02:10.2]} 19. Qc3
{[%clk 0:02:31.4]} 19... f6 {[%clk 0:01:59.2]} 20. Bf1 {[%clk 0:02:27.7]} 20...
Qf7 {[%clk 0:01:55.3]} 21. b4 {[%clk 0:02:24.2]} 21... axb4 {[%clk 0:01:53.3]}
22. axb4 {[%clk 0:02:25.1]} 22... Nd7 {[%clk 0:01:52]} 23. Red1 {[%clk
0:02:22.8]} 23... Kh8 {[%clk 0:01:38.9]} 24. Bf2 {[%clk 0:02:17.1]} 24... f5
{[%clk 0:01:36.9]} 25. exf5 {[%clk 0:02:16.4]} 25... Qxf5 {[%clk 0:01:37.8]} 26.
Bd4 {[%clk 0:02:13.5]} 26... Qg5 {[%clk 0:01:33.6]} 27. c5 {[%clk 0:02:07.5]}
27... bxc5 {[%clk 0:01:29.4]} 28. bxc5 {[%clk 0:02:08.4]} 28... Nf6 {[%clk
0:01:11.1]} 29. cxd6 {[%clk 0:01:57.5]} 29... cxd6 {[%clk 0:01:07.8]} 30. Bxf6
{[%clk 0:01:54.8]} 30... gxf6 {[%clk 0:01:08.7]} 31. Rxd6 {[%clk 0:01:46.6]}
31... Rac8 {[%clk 0:01:08.6]} 32. Bc4 {[%clk 0:01:34.8]} 32... Rxc4 {[%clk
0:00:43.1]} 33. Qxc4 {[%clk 0:01:22.5]} 33... Bxf3 {[%clk 0:00:19]} 34. Qf1
{[%clk 0:01:21.4]} 34... Qe3+ {[%clk 0:00:13.6]} 35. Kh1 {[%clk 0:01:12.5]}
35... Bxg2+ {[%clk 0:00:10.4]} 36. Qxg2 {[%clk 0:01:07.1]} 36... Qxc1+ {[%clk
0:00:09.2]} 37. Qg1 {[%clk 0:01:06.8]} 37... Qf4 {[%clk 0:00:04.7]} 38. Qg3
{[%clk 0:00:17.7]} 38... Qf1+ {[%clk 0:00:02.3]} 39. Qg1 {[%clk 0:00:18.3]}
39... Qf3+ {[%clk 0:00:02.5]} 40. Qg2 {[%clk 0:00:19.2]} 40... Re1# {[%clk
0:00:03]} 0-1

[Event "*** Titled Tuesday Blitz"]
[Site "Chess.com"]
[Date "2020.12.01"]
[Round "5"]
[White "Gusarov91"]
[Black "gmpeter008"]
[Result "0-1"]
[WhiteElo "2633"]
[BlackElo "2439"]
[TimeControl "180+1"]
[EndTime "10:54:47 PST"]
[Termination "gmpeter008 won by checkmate"]

1. d4 {[%clk 0:03:00.9]} 1... Nf6 {[%clk 0:02:54.2]} 2. Nf3 {[%clk 0:02:59.9]}
2... e6 {[%clk 0:02:53]} 3. c4 {[%clk 0:02:58.5]} 3... Bb4+ {[%clk 0:02:51.6]}
4. Bd2 {[%clk 0:02:58.5]} 4... a5 {[%clk 0:02:51.6]} 5. Qc2 {[%clk 0:02:58.7]}
5... d5 {[%clk 0:02:49.1]} 6. g3 {[%clk 0:02:58.4]} 6... O-O {[%clk 0:02:48.6]}
7. Bg2 {[%clk 0:02:58.7]} 7... c6 {[%clk 0:02:49]} 8. O-O {[%clk 0:02:58.2]}
8... b6 {[%clk 0:02:49.2]} 9. Bg5 {[%clk 0:02:57.9]} 9... Be7 {[%clk 0:02:48.3]}
10. Nbd2 {[%clk 0:02:57.2]} 10... Nbd7 {[%clk 0:02:46.1]} 11. Rfc1 {[%clk
0:02:56.5]} 11... Ba6 {[%clk 0:02:45.7]} 12. e3 {[%clk 0:02:44.9]} 12... Rc8
{[%clk 0:02:45]} 13. Qd1 {[%clk 0:02:32]} 13... c5 {[%clk 0:02:44.7]} 14. cxd5
{[%clk 0:02:31.5]} 14... Nxd5 {[%clk 0:02:41.5]} 15. Bxe7 {[%clk 0:02:31]} 15...
Qxe7 {[%clk 0:02:42.4]} 16. a3 {[%clk 0:02:25.3]} 16... cxd4 {[%clk 0:02:36.8]}
17. Nxd4 {[%clk 0:02:25.2]} 17... Ne5 {[%clk 0:02:35.8]} 18. Qh5 {[%clk
0:02:09.3]} 18... Rxc1+ {[%clk 0:02:29.9]} 19. Rxc1 {[%clk 0:02:08.9]} 19... Nd3
{[%clk 0:02:30.4]} 20. Rc6 {[%clk 0:02:03]} 20... Qf6 {[%clk 0:02:25.1]} 21. Ne4
{[%clk 0:02:01.2]} 21... Qd8 {[%clk 0:02:06.7]} 22. Ng5 {[%clk 0:01:47.4]} 22...
Nf6 {[%clk 0:02:06]} 23. Qe2 {[%clk 0:01:39.9]} 23... Nb4 {[%clk 0:01:58.6]} 24.
Qf3 {[%clk 0:01:30.6]} 24... Nxc6 {[%clk 0:01:56.5]} 25. Qxc6 {[%clk 0:01:30.1]}
25... e5 {[%clk 0:01:55.1]} 26. Nb5 {[%clk 0:01:13.6]} 26... Qd1+ {[%clk
0:01:54.4]} 27. Bf1 {[%clk 0:01:14]} 27... h6 {[%clk 0:01:45.5]} 28. Nh3 {[%clk
0:01:09.9]} 28... Ng4 {[%clk 0:01:44.3]} 29. Qxb6 {[%clk 0:01:07.9]} 29... Ra8
{[%clk 0:01:38.6]} 30. a4 {[%clk 0:01:05.4]} 30... Qxa4 {[%clk 0:01:29.5]} 31.
Qc6 {[%clk 0:00:57.7]} 31... Rc8 {[%clk 0:01:03.2]} 32. Qxa6 {[%clk 0:00:57.1]}
32... Rc1 {[%clk 0:01:03.6]} 33. Nc3 {[%clk 0:00:52.7]} 33... Qd7 {[%clk
0:01:00.4]} 34. Qa8+ {[%clk 0:00:46.4]} 34... Kh7 {[%clk 0:00:58.7]} 35. Qe4+
{[%clk 0:00:43.8]} 35... f5 {[%clk 0:00:58.5]} 36. Qc4 {[%clk 0:00:41.4]} 36...
e4 {[%clk 0:00:44.9]} 37. Nf4 {[%clk 0:00:39]} 37... Qd2 {[%clk 0:00:39.7]} 38.
Nh3 {[%clk 0:00:36.3]} 38... Qe1 {[%clk 0:00:35.6]} 39. Qb5 {[%clk 0:00:32.4]}
39... Kg6 {[%clk 0:00:24]} 40. Qa6+ {[%clk 0:00:31.9]} 40... Nf6 {[%clk
0:00:21.8]} 41. Nf4+ {[%clk 0:00:30.5]} 41... Kg5 {[%clk 0:00:19.8]} 42. h4+
{[%clk 0:00:27.4]} 42... Kg4 {[%clk 0:00:19.6]} 43. Qb7 {[%clk 0:00:21.1]} 43...
Qxf1+ {[%clk 0:00:18.8]} 44. Kh2 {[%clk 0:00:21]} 44... Qh1# {[%clk 0:00:18.9]}
0-1

[Event "*** Titled Tuesday Blitz"]
[Site "Chess.com"]
[Date "2020.12.01"]
[Round "5"]
[White "Massakru"]
[Black "Atousa1"]
[Result "1-0"]
[WhiteElo "2313"]
[BlackElo "2472"]
[TimeControl "180+1"]
[EndTime "10:54:47 PST"]
[Termination "Massakru won by resignation"]

1. e4 {[%clk 0:03:00.9]} 1... c5 {[%clk 0:00:47.5]} 2. Nf3 {[%clk 0:02:59.1]}
2... e6 {[%clk 0:00:48]} 3. c3 {[%clk 0:02:59.3]} 3... Nf6 {[%clk 0:00:47]} 4.
e5 {[%clk 0:02:59.3]} 4... Nd5 {[%clk 0:00:46.4]} 5. d4 {[%clk 0:02:59.8]} 5...
cxd4 {[%clk 0:00:47.2]} 6. cxd4 {[%clk 0:03:00.2]} 6... d6 {[%clk 0:00:47.7]} 7.
a3 {[%clk 0:03:00]} 7... Nc6 {[%clk 0:00:48.2]} 8. Bd3 {[%clk 0:02:59.4]} 8...
Bd7 {[%clk 0:00:46.7]} 9. O-O {[%clk 0:02:59.3]} 9... Be7 {[%clk 0:00:47.2]} 10.
Re1 {[%clk 0:02:59.4]} 10... dxe5 {[%clk 0:00:47.6]} 11. dxe5 {[%clk 0:02:59]}
11... Qc7 {[%clk 0:00:47.8]} 12. Bd2 {[%clk 0:02:53]} 12... h6 {[%clk
0:00:47.1]} 13. Nc3 {[%clk 0:02:53]} 13... O-O-O {[%clk 0:00:46.8]} 14. Nxd5
{[%clk 0:02:51.3]} 14... exd5 {[%clk 0:00:47.5]} 15. Rc1 {[%clk 0:02:47.1]}
15... Kb8 {[%clk 0:00:47.7]} 16. Bf4 {[%clk 0:02:40.1]} 16... Be6 {[%clk
0:00:46.6]} 17. b4 {[%clk 0:02:27.2]} 17... g5 {[%clk 0:00:45.5]} 18. Be3 {[%clk
0:02:19.5]} 18... Qd7 {[%clk 0:00:41]} 19. Bb5 {[%clk 0:02:15.4]} 19... Rc8
{[%clk 0:00:39.5]} 20. Nd4 {[%clk 0:02:12.8]} 20... Rc7 {[%clk 0:00:32.5]} 21.
Qa4 {[%clk 0:02:06]} 21... Rhc8 {[%clk 0:00:30.7]} 22. Nxc6+ {[%clk 0:02:00.4]}
22... bxc6 {[%clk 0:00:30.1]} 23. Ba6 {[%clk 0:01:46]} 23... Rg8 {[%clk
0:00:29.8]} 24. Qa5 {[%clk 0:01:31.2]} 24... g4 {[%clk 0:00:22.4]} 25. Bxh6
{[%clk 0:01:25.2]} 25... Bd8 {[%clk 0:00:19.9]} 26. Qc5 {[%clk 0:01:12.9]} 26...
Ka8 {[%clk 0:00:19.8]} 27. Be3 {[%clk 0:01:08.2]} 27... Be7 {[%clk 0:00:20.3]}
28. Qd4 {[%clk 0:01:05.7]} 28... Bg5 {[%clk 0:00:18.9]} 29. Bxg5 {[%clk
0:01:01.9]} 29... Rxg5 {[%clk 0:00:19.8]} 30. b5 {[%clk 0:00:55.1]} 30... cxb5
{[%clk 0:00:15.5]} 31. Rxc7 {[%clk 0:00:47.2]} 31... Qxc7 {[%clk 0:00:16.4]} 32.
Bxb5 {[%clk 0:00:44.9]} 32... Rg8 {[%clk 0:00:16.1]} 33. Qf4 {[%clk 0:00:38.1]}
33... Rb8 {[%clk 0:00:15.5]} 34. Rc1 {[%clk 0:00:33.8]} 34... Qa5 {[%clk
0:00:12.5]} 35. Bc6+ {[%clk 0:00:33.1]} 35... Rb7 {[%clk 0:00:12.5]} 36. Rb1
{[%clk 0:00:26]} 36... Bc8 {[%clk 0:00:10.9]} 37. Qxf7 {[%clk 0:00:23.2]} 37...
Qa6 {[%clk 0:00:09.5]} 38. Bxb7+ {[%clk 0:00:22.7]} 38... Bxb7 {[%clk
0:00:09.3]} 39. Qxb7+ {[%clk 0:00:20]} 39... Qxb7 {[%clk 0:00:09.5]} 40. Rxb7
{[%clk 0:00:19.7]} 40... Kxb7 {[%clk 0:00:10.4]} 41. h4 {[%clk 0:00:19.2]} 41...
Kc7 {[%clk 0:00:11.3]} 42. h5 {[%clk 0:00:18.7]} 42... Kd7 {[%clk 0:00:12.2]}
43. h6 {[%clk 0:00:18.8]} 43... Ke7 {[%clk 0:00:13.1]} 44. h7 {[%clk 0:00:19]}
44... Kf7 {[%clk 0:00:13.8]} 45. h8=Q {[%clk 0:00:19.2]} 1-0

[Event "*** Titled Tuesday Blitz"]
[Site "Chess.com"]
[Date "2020.12.01"]
[Round "5"]
[White "Roza_Idrisova"]
[Black "andrzej"]
[Result "1-0"]
[WhiteElo "2187"]
[BlackElo "2370"]
[TimeControl "180+1"]
[EndTime "10:54:47 PST"]
[Termination "Roza_Idrisova won on time"]

1. d4 {[%clk 0:03:00.9]} 1... Nf6 {[%clk 0:02:59.5]} 2. Nf3 {[%clk 0:03:01]}
2... g6 {[%clk 0:02:59.7]} 3. c4 {[%clk 0:03:00.4]} 3... Bg7 {[%clk 0:03:00.2]}
4. Nc3 {[%clk 0:03:00.6]} 4... O-O {[%clk 0:03:00.7]} 5. e4 {[%clk 0:03:00.7]}
5... d6 {[%clk 0:03:01.2]} 6. Be2 {[%clk 0:02:59.8]} 6... e5 {[%clk 0:03:01.8]}
7. O-O {[%clk 0:02:59.3]} 7... exd4 {[%clk 0:03:02.3]} 8. Nxd4 {[%clk
0:02:58.7]} 8... Re8 {[%clk 0:03:02.9]} 9. Bf3 {[%clk 0:02:58.1]} 9... h5 {[%clk
0:02:52.3]} 10. Re1 {[%clk 0:02:57.1]} 10... Bg4 {[%clk 0:02:49.9]} 11. Bg5
{[%clk 0:02:51.2]} 11... c6 {[%clk 0:02:35.1]} 12. h3 {[%clk 0:02:49.8]} 12...
Bc8 {[%clk 0:02:28.2]} 13. Qd2 {[%clk 0:02:47.4]} 13... Nbd7 {[%clk 0:02:27]}
14. Rad1 {[%clk 0:02:46.3]} 14... Ne5 {[%clk 0:02:27]} 15. Be2 {[%clk 0:02:43]}
15... Qc7 {[%clk 0:02:20.1]} 16. f4 {[%clk 0:02:39.8]} 16... Ned7 {[%clk
0:02:20.6]} 17. Bf3 {[%clk 0:02:38.7]} 17... Nh7 {[%clk 0:02:15.3]} 18. Bh4
{[%clk 0:02:37]} 18... Nc5 {[%clk 0:02:09.6]} 19. Nb3 {[%clk 0:02:31.8]} 19...
Nxb3 {[%clk 0:02:05.6]} 20. axb3 {[%clk 0:02:31.4]} 20... Qb6+ {[%clk
0:01:58.8]} 21. Bf2 {[%clk 0:02:28.6]} 21... Qxb3 {[%clk 0:01:57]} 22. Qxd6
{[%clk 0:02:20.8]} 22... Qxc4 {[%clk 0:01:51.7]} 23. e5 {[%clk 0:02:12.2]} 23...
Qxf4 {[%clk 0:01:47.6]} 24. Rd4 {[%clk 0:02:05.6]} 24... Qf5 {[%clk 0:01:30.9]}
25. Bg3 {[%clk 0:01:48.8]} 25... Ng5 {[%clk 0:01:27.5]} 26. Rf4 {[%clk
0:01:41.7]} 26... Qe6 {[%clk 0:01:20.7]} 27. Qxe6 {[%clk 0:01:39.5]} 27... Nxf3+
{[%clk 0:01:18.9]} 28. Rxf3 {[%clk 0:01:38.8]} 28... Bxe6 {[%clk 0:01:19.1]} 29.
Rfe3 {[%clk 0:01:34.9]} 29... a5 {[%clk 0:01:15.2]} 30. Rd1 {[%clk 0:01:33.2]}
30... a4 {[%clk 0:01:14]} 31. Ra1 {[%clk 0:01:25.2]} 31... b5 {[%clk 0:01:13.5]}
32. Ne4 {[%clk 0:01:24.2]} 32... Bd5 {[%clk 0:01:02.6]} 33. Nc3 {[%clk
0:01:14.3]} 33... Bc4 {[%clk 0:01:00.1]} 34. Kf2 {[%clk 0:01:11.7]} 34... Bf8
{[%clk 0:00:59]} 35. Ne4 {[%clk 0:01:08.2]} 35... Kg7 {[%clk 0:00:53]} 36. Bh4
{[%clk 0:01:04.7]} 36... Be7 {[%clk 0:00:44.6]} 37. Nf6 {[%clk 0:00:46.1]} 37...
Bxf6 {[%clk 0:00:39.3]} 38. Bxf6+ {[%clk 0:00:44.3]} 38... Kf8 {[%clk
0:00:38.2]} 39. g4 {[%clk 0:00:44.4]} 39... b4 {[%clk 0:00:25.4]} 40. gxh5
{[%clk 0:00:44.2]} 40... gxh5 {[%clk 0:00:25.5]} 41. Rg3 {[%clk 0:00:42.8]}
41... h4 {[%clk 0:00:12.9]} 42. Rg4 {[%clk 0:00:38]} 42... Bd3 {[%clk
0:00:03.8]} 43. Rxh4 {[%clk 0:00:35.2]} 1-0

[Event "*** Titled Tuesday Blitz"]
[Site "Chess.com"]
[Date "2020.12.01"]
[Round "5"]
[White "Azerichess"]
[Black "Funo09"]
[Result "1-0"]
[WhiteElo "2959"]
[BlackElo "2755"]
[TimeControl "180+1"]
[EndTime "10:54:48 PST"]
[Termination "Azerichess won on time"]

1. d4 {[%clk 0:03:00.9]} 1... Nf6 {[%clk 0:03:00.1]} 2. c4 {[%clk 0:03:01.4]}
2... Nc6 {[%clk 0:03:00.7]} 3. Nc3 {[%clk 0:02:57]} 3... e5 {[%clk 0:03:00.2]}
4. dxe5 {[%clk 0:02:56.5]} 4... Nxe5 {[%clk 0:03:00.5]} 5. e3 {[%clk 0:02:56.8]}
5... Bb4 {[%clk 0:02:59.8]} 6. Bd2 {[%clk 0:02:51.2]} 6... a5 {[%clk 0:02:59.7]}
7. a3 {[%clk 0:02:48.3]} 7... Bc5 {[%clk 0:02:59.8]} 8. f4 {[%clk 0:02:43.4]}
8... Nc6 {[%clk 0:02:35.7]} 9. Qf3 {[%clk 0:02:42.5]} 9... O-O {[%clk
0:02:35.8]} 10. h3 {[%clk 0:02:26.1]} 10... Re8 {[%clk 0:02:29.9]} 11. O-O-O
{[%clk 0:02:26]} 11... Qe7 {[%clk 0:02:25.6]} 12. Kb1 {[%clk 0:02:16.3]} 12...
d6 {[%clk 0:02:20.2]} 13. Bd3 {[%clk 0:02:14.5]} 13... a4 {[%clk 0:01:50.8]} 14.
g4 {[%clk 0:02:00.1]} 14... Be6 {[%clk 0:01:39.4]} 15. g5 {[%clk 0:01:23.3]}
15... Nd7 {[%clk 0:01:39.3]} 16. Nd5 {[%clk 0:01:23.9]} 16... Bxd5 {[%clk
0:01:31.3]} 17. cxd5 {[%clk 0:01:24.8]} 17... Na5 {[%clk 0:01:31]} 18. e4 {[%clk
0:01:24.6]} 18... Nb3 {[%clk 0:01:13.6]} 19. Bc3 {[%clk 0:01:24]} 19... Bd4
{[%clk 0:01:12.1]} 20. Ne2 {[%clk 0:01:15.9]} 20... Bxc3 {[%clk 0:01:09.8]} 21.
Nxc3 {[%clk 0:01:16.8]} 21... Ndc5 {[%clk 0:01:10.2]} 22. Bc2 {[%clk 0:01:16.8]}
22... b5 {[%clk 0:01:02.7]} 23. Rhe1 {[%clk 0:01:04.3]} 23... Rab8 {[%clk
0:01:02.4]} 24. Na2 {[%clk 0:01:04.4]} 24... Na5 {[%clk 0:00:54.2]} 25. Nb4
{[%clk 0:01:02.9]} 25... Qd7 {[%clk 0:00:51.1]} 26. e5 {[%clk 0:00:58.8]} 26...
Nc4 {[%clk 0:00:48.6]} 27. Nc6 {[%clk 0:00:57.1]} 27... Rb6 {[%clk 0:00:37]} 28.
h4 {[%clk 0:00:53]} 28... b4 {[%clk 0:00:21.8]} 29. axb4 {[%clk 0:00:51.8]}
29... Na6 {[%clk 0:00:21.8]} 30. Bxa4 {[%clk 0:00:42.3]} 30... Nxb4 {[%clk
0:00:19.7]} 31. Qc3 {[%clk 0:00:38.2]} 31... Qf5+ {[%clk 0:00:11.2]} 32. Ka1
{[%clk 0:00:37.8]} 32... Ra8 {[%clk 0:00:09.6]} 33. b3 {[%clk 0:00:33]} 33...
Rxc6 {[%clk 0:00:02.8]} 34. dxc6 {[%clk 0:00:31.8]} 34... Nc2+ {[%clk 0:00:03]}
35. Ka2 {[%clk 0:00:32.3]} 35... Nxe1 {[%clk 0:00:02.5]} 36. Rxe1 {[%clk
0:00:29.9]} 36... Nb6 {[%clk 0:00:02.6]} 37. exd6 {[%clk 0:00:30.6]} 37... cxd6
{[%clk 0:00:02.8]} 38. c7 {[%clk 0:00:30.5]} 38... h5 {[%clk 0:00:02.7]} 39. Qc6
{[%clk 0:00:29.9]} 39... Qc8 {[%clk 0:00:01.8]} 40. Qxb6 {[%clk 0:00:25.6]} 1-0